bitfinex/quotes_SOLUSD_20250724
["timestamp","ask_amount","ask_price","bid_price","bid_amount"]
[1753363486851,0.2,186.46,186.45,159.33387576]
[1753363487150,0.2,186.46,186.45,159.47603733]
[1753363488035,0.2,186.46,186.45,168.34969936]
[1753363488234,0.2,186.46,186.45,159.47603733]
[1753363489631,0.2,186.46,186.45,149.8923753]
[1753363489852,0.87,186.46,186.45,105.78468397]
[1753363490054,0.87,186.46,186.45,127.46]
[1753363490220,0.2,186.46,186.45,120.02171419]
[1753363490428,0.2,186.46,186.45,120.16387576]
[1753363490849,0.2,186.46,186.45,120.30603733]
[1753363491057,0.2,186.46,186.45,111.4323753]
[1753363491347,0.2,186.46,186.45,121.01603733]
[1753363493356,0.2,186.46,186.45,117.57942899]
[1753363495456,1e-08,186.46,186.45,119.20822899]
[1753363495658,1e-08,186.48,186.45,125.50522899]
[1753363495828,1e-08,186.48,186.47,27.94311449]
[1753363496032,1e-08,186.48,186.47,116.94311449]
[1753363496227,1e-08,186.48,186.47,117.65311449]
[1753363497233,1e-08,186.5,186.49,42.78468397]
[1753363497428,1e-08,186.5,186.49,176.48228258]
[1753363497631,1e-08,186.5,186.49,176.6560608]
[1753363498732,1e-08,186.5,186.49,131.78468397]
[1753363499038,1e-08,186.5,186.49,175.80389923]
[1753363499440,1e-08,186.5,186.49,181.87611704]
[1753363499655,1e-08,186.5,186.49,182.01827861]
[1753363499854,0.67000001,186.5,186.45,94.36315022]
[1753363500040,5.43705369,186.49,186.46,16.78468397]
[1753363500356,1e-08,186.5,186.47,38.46]
[1753363500559,1e-08,186.5,186.47,38.5]
[1753363500738,0.67000001,186.5,186.47,38.5]
[1753363501136,1e-08,186.5,186.47,38.5]
[1753363501432,0.67,186.49,186.47,38.5]
[1753363501630,0.67,186.48,186.47,38.5]
[1753363502236,1e-08,186.5,186.46,38.64216157]
[1753363502437,1e-08,186.5,186.46,44.07921526]
[1753363502638,1e-08,186.5,186.48,0.14216157]
[1753363502847,1e-08,186.5,186.49,22.5060608]
[1753363503245,0.67000001,186.5,186.49,0.28432314]
[1753363503458,0.67000001,186.5,186.48,127.5]
[1753363503643,1e-08,186.5,186.48,127.5]
[1753363503846,0.67,186.49,186.48,127.5]
[1753363504049,1e-08,186.5,186.49,17.06900711]
[1753363504995,1e-08,186.5,186.49,25.92985056]
[1753363505164,1e-08,186.5,186.49,17.06900711]
[1753363506368,1e-08,186.5,186.49,31.29206837]
[1753363506534,1e-08,186.5,186.49,22.43122492]
[1753363506958,1e-08,186.5,186.49,31.29206837]
[1753363507446,1e-08,186.5,186.49,32.53829015]
[1753363508384,1e-08,186.5,186.49,58.53829015]
[1753363508541,1e-08,186.53,186.52,16.78468397]
[1753363508752,1e-08,186.54,186.53,0.28432314]
[1753363508950,1e-08,186.55,186.54,43.06900711]
[1753363509165,1e-08,186.55,186.54,64.96592861]
[1753363509357,1e-08,186.55,186.54,65.65592861]
[1753363509987,0.69,186.62,186.56,26.0]
[1753363510270,1e-08,186.57,186.56,99.82671459]
[1753363510473,1e-08,186.57,186.56,105.87692042]
[1753363510672,1e-08,186.57,186.56,110.16603209]
[1753363510976,1e-08,186.57,186.56,109.63001151]
[1753363512662,0.1,186.69,186.56,109.63001151]
[1753363512663,1e-08,186.59,186.58,25.92985056]
[1753363512972,1e-08,186.6,186.59,0.28432314]
[1753363513161,0.1,186.69,186.59,123.51995056]
[1753363513371,0.1,186.69,186.68,25.64552742]
[1753363513678,0.1,186.69,186.68,55.24468397]
[1753363514548,0.1,186.69,186.68,70.43661079]
[1753363515173,0.1,186.69,186.68,22.42576734]
[1753363515470,0.1,186.69,186.68,69.74661079]
[1753363515653,0.1,186.69,186.68,70.43661079]
[1753363517571,0.1,186.69,186.68,69.74661079]
[1753363517951,0.1,186.69,186.68,70.43661079]
[1753363518753,0.1,186.69,186.68,70.97228681]
[1753363519873,0.79,186.69,186.68,55.36684554]
[1753363520087,0.79,186.69,186.68,38.44]
[1753363520951,9.65084345,186.69,186.65,16.78468397]
[1753363521155,9.55084345,186.68,186.66,38.46]
[1753363521379,0.69,186.67,186.65,55.24468397]
[1753363521581,0.69,186.67,186.65,60.60214961]
[1753363522462,0.69,186.67,186.65,55.24468397]
[1753363522969,8.96084345,186.69,186.65,55.24468397]
[1753363523168,0.69,186.66,186.65,55.24468397]
[1753363523371,0.69,186.66,186.65,38.42]
[1753363523571,8.86084345,186.68,186.65,38.42]
[1753363523782,0.79,186.69,186.66,16.78468397]
[1753363523783,8.96084345,186.69,186.66,16.78468397]
[1753363523969,0.1,186.69,186.66,16.78468397]
[1753363524163,0.69,186.68,186.66,38.44]
[1753363524966,0.69,186.67,186.64,5.35787167]
[1753363525171,0.69,186.66,186.65,55.20468397]
[1753363525769,0.69,186.66,186.65,16.78468397]
[1753363527369,9.55084345,186.68,186.65,16.78468397]
[1753363527566,0.69,186.67,186.65,16.78468397]
[1753363527778,9.55084345,186.67,186.65,16.78468397]
[1753363527966,9.55084345,186.66,186.64,38.42]
[1753363528167,9.55084345,186.65,186.62,16.78468397]
[1753363528367,0.69,186.64,186.62,16.78468397]
[1753363529082,9.55084345,186.67,186.62,25.64552742]
[1753363529276,9.55084345,186.67,186.63,43.77819535]
[1753363529477,0.69,186.66,186.64,16.78468397]
[1753363531087,8.86084345,186.67,186.64,16.78468397]
[1753363531273,9.55084345,186.67,186.64,16.78468397]
[1753363531475,0.69,186.66,186.64,16.78468397]
[1753363532076,0.69,186.65,186.64,16.78468397]
[1753363532796,0.69,186.65,186.63,38.42]
[1753363532976,0.69,186.64,186.63,38.42]
[1753363533292,0.69,186.64,186.6,10.78903213]
[1753363533472,5.43000649,186.65,186.61,55.34684554]
[1753363533673,0.69,186.63,186.61,55.34684554]
[1753363533869,0.69,186.62,186.58,31.35954676]
[1753363534070,5.43000649,186.6,186.56,0.06]
[1753363534271,5.43000649,186.57,186.56,0.06]
[1753363534474,6.12000649,186.57,186.56,0.06]
[1753363535102,11.47992501,186.57,186.56,0.06]
[1753363535399,6.12000649,186.57,186.56,0.06]
[1753363535583,5.43000649,186.58,186.56,0.06]
[1753363536099,6.12000649,186.58,186.56,0.06]
[1753363536398,5.43000649,186.58,186.56,0.06]
[1753363536975,5.43000649,186.61,186.57,0.28432314]
[1753363537171,8.85317535,186.61,186.57,17.06900711]
[1753363537398,9.54317535,186.6,186.57,17.06900711]
[1753363537574,8.85317535,186.6,186.57,16.78468397]
[1753363537977,9.54317535,186.6,186.57,16.78468397]
[1753363538388,0.69,186.6,186.57,22.14454206]
[1753363538604,8.85317535,186.61,186.57,22.14454206]
[1753363539090,9.52317535,186.61,186.57,22.14454206]
[1753363540036,0.67,186.65,186.58,17.73900711]
[1753363540194,8.85317535,186.63,186.58,26.59218246]
[1753363540397,9.52317535,186.65,186.6,25.63785932]
[1753363540598,0.67,186.64,186.6,16.78468397]
[1753363540804,0.67,186.63,186.6,16.78468397]
[1753363541185,8.85317535,186.61,186.59,38.42]
[1753363541505,8.85317535,186.61,186.57,94.35985809]
[1753363541506,0.67,186.6,186.58,16.78468397]
[1753363541702,9.52317535,186.6,186.57,43.77990658]
[1753363542000,23.7482614,186.67,186.57,43.77990658]
[1753363542001,8.85317535,186.61,186.57,43.77990658]
[1753363542303,0.67,186.61,186.58,16.78468397]
[1753363543393,0.67,186.6,186.58,16.78468397]
[1753363543794,8.85317535,186.61,186.57,38.42]
[1753363544000,5.35863032,186.62,186.57,38.42]
[1753363544001,8.85317535,186.62,186.58,16.78468397]
[1753363544178,9.52317535,186.63,186.58,26.36785932]
[1753363544383,9.52317535,186.63,186.6,16.78468397]
[1753363544384,0.67,186.63,186.6,16.78468397]
[1753363544578,6.88913235,186.67,186.61,25.63785932]
[1753363544579,9.52317535,186.66,186.61,25.63785932]
[1753363544886,8.85317535,186.66,186.62,0.67]
[1753363545094,9.52317535,186.66,186.62,0.67]
[1753363545301,8.88317535,186.67,186.63,16.78468397]
[1753363545486,0.03,186.67,186.64,5.35790827]
[1753363545684,0.7,186.67,186.64,5.35790827]
[1753363546311,0.03,186.67,186.64,6.02790827]
[1753363546699,0.03,186.67,186.64,5.35790827]
[1753363546929,8.85317535,186.65,186.61,43.77876199]
[1753363547225,0.67,186.64,186.62,16.78468397]
[1753363547389,0.67,186.64,186.62,5.35833869]
[1753363547595,8.85317535,186.66,186.62,5.35833869]
[1753363547809,0.7,186.67,186.61,16.78468397]
[1753363547810,8.85317535,186.65,186.61,22.14343623]
[1753363548092,0.67,186.64,186.61,22.14343623]
[1753363548616,8.85317535,186.66,186.61,22.14343623]
[1753363548819,8.85317535,186.66,186.61,22.81343623]
[1753363548994,9.52317535,186.66,186.61,22.81343623]
[1753363549198,9.52317535,186.66,186.62,0.28432314]
[1753363549523,0.03,186.67,186.63,6.02819535]
[1753363549824,0.7,186.67,186.63,5.35819535]
[1753363550008,0.7,186.67,186.64,16.78468397]
[1753363550322,0.03,186.67,186.64,16.78468397]
[1753363550497,9.52317535,186.66,186.62,43.77842802]
[1753363550907,9.52317535,186.65,186.62,38.42]
[1753363551094,9.52317535,186.64,186.62,16.78468397]
[1753363551295,0.67,186.63,186.61,5.35871123]
[1753363551495,8.85317535,186.64,186.61,5.35871123]
[1753363551702,9.52317535,186.64,186.61,5.35871123]
[1753363551903,8.85317535,186.66,186.62,17.45468397]
[1753363552321,0.03,186.67,186.64,16.78468397]
[1753363552817,0.03,186.67,186.64,17.45468397]
[1753363553122,0.03,186.67,186.66,25.92218246]
[1753363553498,0.03,186.67,186.66,31.27951665]
[1753363553694,0.03,186.67,186.66,31.94951665]
[1753363555114,0.03,186.67,186.66,70.36951665]
[1753363555522,0.03,186.67,186.66,60.8463413]
[1753363555726,0.03,186.67,186.66,69.69951665]
[1753363556024,0.03,186.67,186.66,70.36951665]
[1753363556204,0.03,186.67,186.66,61.5163413]
[1753363556412,0.03,186.67,186.66,60.56201816]
[1753363557230,0.03,186.67,186.66,22.14201816]
[1753363557546,6.12781632,186.67,186.63,5.64224585]
[1753363557831,6.12781632,186.67,186.59,89.0]
[1753363557832,5.42781632,186.64,186.59,16.78468397]
[1753363558001,5.42781632,186.64,186.61,16.78468397]
[1753363558002,6.09781632,186.64,186.61,16.78468397]
[1753363558401,5.42781632,186.64,186.61,16.78468397]
[1753363559026,5.42781632,186.64,186.62,5.35848247]
[1753363559224,6.09781632,186.63,186.6,43.75900474]
[1753363559526,5.42781632,186.62,186.6,5.35900474]
[1753363559698,6.09781632,186.63,186.6,5.35900474]
[1753363560221,5.42781632,186.63,186.61,16.78468397]
[1753363560420,5.42781632,186.65,186.61,17.45468397]
[1753363560630,5.42781632,186.64,186.61,16.78468397]
[1753363560828,5.42781632,186.63,186.61,16.78468397]
[1753363561003,5.42781632,186.63,186.59,127.4]
[1753363561208,0.67,186.62,186.58,60.60406659]
[1753363561426,5.42781632,186.63,186.59,0.67]
[1753363561623,5.42781632,186.63,186.59,0.95432314]
[1753363561831,6.09781632,186.62,186.59,0.28432314]
[1753363562225,5.42781632,186.62,186.59,0.28432314]
[1753363562427,5.42781632,186.61,186.59,5.64361655]
[1753363562613,5.42781632,186.62,186.59,5.64361655]
[1753363563434,6.09781632,186.62,186.59,5.64361655]
[1753363563733,5.42781632,186.61,186.59,5.64361655]
[1753363563931,6.09781632,186.6,186.58,0.06]
[1753363564108,5.42781632,186.59,186.58,0.06]
[1753363564310,11.45716033,186.59,186.58,0.06]
[1753363564617,26.0,186.56,186.52,0.06]
[1753363564810,5.42781632,186.53,186.52,0.06]
[1753363565008,31.42781632,186.53,186.48,0.06]
[1753363565225,38.4,186.55,186.48,0.06]
[1753363565226,5.42781632,186.49,186.48,0.06]
[1753363565433,10.85563264,186.49,186.41,0.06]
[1753363565615,5.42781632,186.42,186.41,0.06]
[1753363566140,6.09781632,186.42,186.41,0.06]
[1753363566632,11.46204762,186.42,186.41,0.06]
[1753363566836,16.88986394,186.42,186.39,0.06]
[1753363567020,36.85563264,186.4,186.39,0.06]
[1753363567226,34.87866256,186.4,186.39,0.06]
[1753363567441,35.54866256,186.4,186.39,0.06]
[1753363568236,74.00866256,186.4,186.39,0.06]
[1753363568536,8.87866256,186.4,186.39,0.06]
[1753363568733,9.53866256,186.4,186.39,0.06]
[1753363569112,64.46,186.42,186.39,0.06]
[1753363569312,8.87866256,186.4,186.39,0.06]
[1753363569915,8.87866256,186.41,186.39,0.06]
[1753363570336,8.87866256,186.42,186.39,0.06]
[1753363570538,8.87866256,186.41,186.39,0.06]
[1753363570834,8.87866256,186.4,186.39,0.06]
[1753363571027,9.53866256,186.4,186.39,0.06]
[1753363571934,8.87866256,186.4,186.39,0.06]
[1753363572523,8.87866256,186.41,186.39,0.06]
[1753363573043,8.87866256,186.4,186.39,0.06]
[1753363573238,8.87866256,186.41,186.4,0.7]
[1753363573744,8.87866256,186.41,186.39,0.06]
[1753363573921,8.87866256,186.42,186.39,0.06]
[1753363574122,47.33866256,186.43,186.4,0.7]
[1753363574317,8.87866256,186.45,186.41,17.48468397]
[1753363574529,0.66,186.48,186.42,0.7]
[1753363574530,8.87866256,186.46,186.42,0.7]
[1753363574731,8.87866256,186.45,186.42,0.7]
[1753363574924,0.66,186.48,186.42,0.7]
[1753363574925,8.87866256,186.46,186.42,0.7]
[1753363576128,8.87866256,186.48,186.43,31.7272901]
[1753363576315,8.87866256,186.47,186.44,0.7]
[1753363576719,8.87866256,186.49,186.45,0.7]
[1753363577639,8.87866256,186.49,186.46,16.78468397]
[1753363577839,8.87866256,186.5,186.46,17.48468397]
[1753363578043,8.87866256,186.5,186.47,0.7]
[1753363578218,8.87866256,186.5,186.47,6.06279193]
[1753363578533,8.87866256,186.5,186.47,5.36279193]
[1753363578740,8.87866256,186.5,186.46,16.78468397]
[1753363578741,8.87866256,186.48,186.45,16.78468397]
[1753363579447,8.87866256,186.46,186.39,0.06]
[1753363579619,8.87866256,186.44,186.39,0.06]
[1753363579941,8.87866256,186.46,186.42,17.48468397]
[1753363580248,8.87866256,186.46,186.43,6.06394357]
[1753363581240,8.87866256,186.46,186.43,5.36394357]
[1753363581455,8.87866256,186.44,186.41,16.78468397]
[1753363581835,8.87866256,186.42,186.39,16.84468397]
[1753363582145,0.66,186.43,186.39,16.84468397]
[1753363582146,8.87866256,186.41,186.39,0.06]
[1753363582622,8.87866256,186.41,186.39,16.84468397]
[1753363582823,8.87866256,186.4,186.39,0.06]
[1753363583025,9.53866256,186.4,186.39,0.06]
[1753363584150,14.90346942,186.4,186.39,0.06]
[1753363584860,48.03866256,186.4,186.39,0.06]
[1753363585039,47.37866256,186.4,186.39,0.06]
[1753363585751,8.87866256,186.4,186.39,0.06]
[1753363585924,47.39866256,186.4,186.39,0.06]
[1753363586246,8.87866256,186.4,186.39,0.06]
[1753363586431,38.5,186.4,186.39,0.06]
[1753363586634,47.37866256,186.4,186.39,0.06]
[1753363587747,53.40346942,186.4,186.39,0.06]
[1753363587935,48.03866256,186.4,186.39,0.06]
[1753363592036,47.37866256,186.4,186.39,0.06]
[1753363592431,8.87866256,186.42,186.39,0.76]
[1753363592624,8.87866256,186.43,186.39,0.76]
[1753363592934,47.33866256,186.43,186.4,0.7]
[1753363593128,38.46,186.43,186.39,16.84468397]
[1753363593334,38.46,186.43,186.4,0.7]
[1753363593632,8.87866256,186.41,186.39,0.06]
[1753363594033,0.03,186.47,186.4,0.7]
[1753363594034,38.46,186.42,186.4,0.7]
[1753363594228,38.46,186.42,186.41,0.7]
[1753363594537,47.35866256,186.44,186.41,0.7]
[1753363594747,38.48,186.44,186.41,0.7]
[1753363594944,47.35866256,186.44,186.41,0.7]
[1753363595247,47.35866256,186.44,186.39,16.84468397]
[1753363595248,8.87866256,186.43,186.39,16.84468397]
[1753363595548,38.46,186.44,186.39,16.84468397]
[1753363595549,38.46,186.44,186.4,9.57866256]
[1753363595737,38.46,186.44,186.41,8.87866256]
[1753363595933,8.87866256,186.46,186.42,6.0642313]
[1753363595934,47.33866256,186.46,186.42,6.0642313]
[1753363596448,38.46,186.46,186.43,0.7]
[1753363596662,38.51,186.47,186.44,0.7]
[1753363596836,47.38866256,186.47,186.42,14.94289386]
[1753363597154,8.87866256,186.43,186.4,16.78468397]
[1753363597752,47.35866256,186.44,186.4,16.78468397]
[1753363597957,47.35866256,186.44,186.41,5.36451907]
[1753363598162,38.48,186.44,186.41,6.06451907]
[1753363598460,47.35866256,186.46,186.42,0.7]
[1753363599444,47.35866256,186.46,186.42,6.06395171]
[1753363599659,47.35866256,186.46,186.43,0.71]
[1753363600058,47.35866256,186.46,186.42,5.36395171]
[1753363600258,47.35866256,186.46,186.41,14.24310583]
[1753363600449,47.35866256,186.46,186.39,0.06]
[1753363600450,8.87866256,186.42,186.39,0.06]
[1753363601171,8.87866256,186.42,186.39,5.42502751]
[1753363601375,47.33866256,186.43,186.39,6.13502751]
[1753363602162,47.33866256,186.43,186.39,5.42502751]
[1753363602362,38.46,186.43,186.41,5.36451907]
[1753363602868,47.33866256,186.43,186.4,5.36473292]
[1753363604254,38.46,186.43,186.4,5.36473292]
[1753363604572,47.33866256,186.45,186.41,0.71]
[1753363604775,8.87866256,186.44,186.41,0.71]
[1753363605076,8.87866256,186.44,186.4,5.36473292]
[1753363605657,8.87866256,186.44,186.4,6.07473292]
[1753363606253,8.87866256,186.43,186.4,6.07473292]
[1753363606465,8.87866256,186.45,186.42,16.78468397]
[1753363606676,0.03,186.47,186.44,27.18854653]
[1753363606857,0.03,186.47,186.46,25.94766967]
[1753363607177,0.03,186.51,186.5,17.06900711]
[1753363607351,0.03,186.54,186.53,42.78468397]
[1753363607551,1e-08,186.54,186.53,52.48377646]
[1753363607753,1e-08,186.54,186.53,53.19377646]
[1753363607969,1e-08,186.54,186.53,57.45701749]
[1753363608185,1e-08,186.54,186.53,62.81808541]
[1753363608551,1e-08,186.54,186.53,58.55484438]
[1753363609765,1e-08,186.54,186.53,97.01484438]
[1753363611673,1e-08,186.54,186.53,95.76873759]
[1753363611880,1e-08,186.54,186.53,96.47873759]
[1753363613369,1e-08,186.54,186.53,55.24468397]
[1753363613670,1e-08,186.54,186.53,69.48441445]
[1753363613982,1e-08,186.54,186.53,64.12334653]
[1753363614567,1e-08,186.54,186.52,16.78468397]
[1753363614760,1e-08,186.54,186.52,25.66334653]
[1753363615156,0.66,186.53,186.52,25.66334653]
[1753363615485,1e-08,186.54,186.52,16.78468397]
[1753363615679,1e-08,186.54,186.52,31.02463609]
[1753363616881,0.66000001,186.54,186.52,16.78468397]
[1753363617286,1e-08,186.54,186.52,22.14602813]
[1753363618155,1e-08,186.54,186.52,16.78468397]
[1753363618356,0.66,186.53,186.48,8.87866256]
[1753363618575,0.66,186.52,186.49,55.22468397]
[1753363618884,8.87866256,186.53,186.49,38.44]
[1753363619062,9.53866256,186.53,186.49,38.44]
[1753363619261,9.53866256,186.52,186.49,38.44]
[1753363619588,9.53866256,186.52,186.48,0.28432314]
[1753363619782,8.87866256,186.52,186.47,127.44]
[1753363619986,8.87866256,186.49,186.47,89.0]
[1753363620182,9.53866256,186.49,186.46,2.73710303]
[1753363620361,1e-08,186.54,186.48,51.66334653]
[1753363620570,1e-08,186.54,186.52,8.87866256]
[1753363620895,1e-08,186.54,186.51,38.44]
[1753363621065,1e-08,186.54,186.53,8.87866256]
[1753363621472,1e-08,186.54,186.52,16.78468397]
[1753363621791,1e-08,186.54,186.52,25.66334653]
[1753363621968,1e-08,186.54,186.51,47.31866256]
[1753363622169,1e-08,186.54,186.51,48.02866256]
[1753363622793,1e-08,186.54,186.52,8.87866256]
[1753363623091,1e-08,186.54,186.53,8.87866256]
[1753363623271,1e-08,186.54,186.53,9.58866256]
[1753363623877,1e-08,186.54,186.53,65.09766967]
[1753363624390,1e-08,186.54,186.53,64.2455081]
[1753363624584,1e-08,186.54,186.53,47.31866256]
[1753363624792,1e-08,186.54,186.53,65.09766967]
[1753363625169,1e-08,186.54,186.53,70.45873759]
[1753363625794,1e-08,186.54,186.53,64.38766967]
[1753363625968,1e-08,186.54,186.53,69.74873759]
[1753363626169,1e-08,186.54,186.53,8.87866256]
[1753363626369,1e-08,186.54,186.53,47.31866256]
[1753363626569,1e-08,186.54,186.53,38.44]
[1753363626766,0.66000001,186.54,186.51,38.44]
[1753363627194,0.66000001,186.54,186.51,47.31866256]
[1753363627195,1e-08,186.54,186.51,47.31866256]
[1753363627397,1e-08,186.54,186.52,25.66334653]
[1753363627584,1e-08,186.54,186.52,26.37334653]
[1753363628292,1e-08,186.54,186.51,43.80154726]
[1753363628293,1e-08,186.54,186.53,64.81334653]
[1753363628666,1e-08,186.54,186.53,64.10334653]
[1753363629279,1e-08,186.54,186.53,70.12441445]
[1753363630182,1e-08,186.54,186.53,70.40873759]
[1753363632078,1e-08,186.54,186.53,25.66334653]
[1753363632280,1e-08,186.54,186.53,64.08334653]
[1753363632640,1e-08,186.54,186.53,38.42]
[1753363632910,1e-08,186.54,186.52,55.26468397]
[1753363633089,1e-08,186.54,186.52,60.62593407]
[1753363633270,1e-08,186.54,186.52,69.50459663]
[1753363633473,1e-08,186.54,186.53,8.87866256]
[1753363633903,1e-08,186.54,186.53,9.8229857]
[1753363635315,1e-08,186.54,186.53,15.18405362]
[1753363636407,1e-08,186.54,186.53,8.87866256]
[1753363636612,1e-08,186.54,186.53,9.8229857]
[1753363637301,1e-08,186.54,186.53,115.60766967]
[1753363637503,1e-08,186.54,186.53,121.66606967]
[1753363638391,1e-08,186.54,186.53,127.02713759]
[1753363639797,1e-08,186.54,186.53,191.30497602]
[1753363640684,1e-08,186.54,186.53,191.44713759]
[1753363642011,1e-08,186.54,186.53,144.00631346]
[1753363642187,1e-08,186.54,186.53,191.30497602]
[1753363642606,1e-08,186.54,186.53,191.44713759]
[1753363642989,1e-08,186.54,186.53,165.44713759]
[1753363643392,0.03,186.58,186.57,16.78468397]
[1753363643701,0.03,186.62,186.57,16.78468397]
[1753363643702,0.03,186.62,186.61,16.78468397]
[1753363644007,0.1,186.66,186.65,43.06900711]
[1753363644203,0.03,186.67,186.65,90.90343179]
[1753363644392,0.03,186.67,186.66,26.32334653]
[1753363644589,0.03,186.67,186.66,35.89788632]
[1753363644913,1e-08,186.67,186.66,125.18220946]
[1753363645320,1e-08,186.67,186.66,127.15033048]
[1753363645821,1e-08,186.67,186.66,155.92973309]
[1753363647012,0.72000001,186.67,186.64,16.78468397]
[1753363647204,1e-08,186.67,186.64,38.42]
[1753363647398,0.72,186.66,186.64,38.42]
[1753363647597,1e-08,186.67,186.63,55.18468397]
[1753363647807,0.72000001,186.67,186.63,55.18468397]
[1753363648916,0.72,186.66,186.63,55.18468397]
[1753363649093,0.72,186.65,186.63,55.18468397]
[1753363649293,9.56716167,186.67,186.63,55.18468397]
[1753363649494,0.72,186.66,186.63,38.4]
[1753363649734,0.72,186.65,186.63,38.4]
[1753363650025,9.56716167,186.67,186.62,38.4]
[1753363650215,8.84716167,186.67,186.62,38.4]
[1753363650519,0.72,186.66,186.62,38.4]
[1753363650818,9.56716166,186.66,186.62,38.4]
[1753363650998,0.72,186.65,186.61,55.18468397]
[1753363651198,0.72,186.64,186.61,55.18468397]
[1753363651496,9.56716166,186.66,186.61,55.18468397]
[1753363651698,0.75,186.65,186.61,64.03184563]
[1753363652089,0.03,186.65,186.61,55.18468397]
[1753363652311,0.72,186.64,186.61,55.18468397]
[1753363652514,0.72,186.64,186.61,16.78468397]
[1753363652900,0.72,186.63,186.58,9.1314848]
[1753363653100,8.84716166,186.61,186.55,14.20758814]
[1753363653303,0.72,186.6,186.56,16.78468397]
[1753363653619,0.72,186.6,186.56,25.63184563]
[1753363653826,5.38778203,186.65,186.57,8.84716166]
[1753363654119,0.72,186.64,186.59,8.84716166]
[1753363654492,0.72,186.64,186.61,8.84716166]
[1753363655156,0.72,186.64,186.6,30.99090243]
[1753363655291,0.03,186.65,186.61,8.84716166]
[1753363655496,0.03,186.65,186.62,8.84716166]
[1753363655697,0.72,186.64,186.6,30.99090243]
[1753363656314,0.72,186.63,186.6,8.84716166]
[1753363656517,0.72,186.63,186.59,52.60644703]
[1753363656738,0.72,186.62,186.57,81.18468397]
[1753363656898,0.72,186.61,186.57,90.03184563]
[1753363658525,0.72,186.61,186.58,8.84716166]
[1753363658711,0.67,186.6,186.56,8.84716166]
[1753363658920,8.84716166,186.61,186.56,8.84716166]
[1753363659119,9.51716166,186.59,186.53,8.90716166]
[1753363659319,9.51716166,186.58,186.53,0.06]
[1753363659527,6.1726,186.62,186.56,8.84716166]
[1753363659528,0.67,186.6,186.56,8.84716166]
[1753363660029,9.51716166,186.63,186.58,8.84716166]
[1753363660328,38.43,186.65,186.61,8.84716166]
[1753363660516,38.43,186.65,186.62,8.84716166]
[1753363660719,0.67,186.64,186.57,38.68432314]
[1753363660910,0.67,186.64,186.58,25.63184563]
[1753363660911,9.51716166,186.64,186.58,25.63184563]
[1753363661112,0.67,186.63,186.58,25.63184563]
[1753363661410,9.51716166,186.62,186.56,8.84716166]
[1753363662127,8.84716166,186.63,186.58,8.84716166]
[1753363662321,8.84716166,186.63,186.58,9.56716166]
[1753363662653,9.51716166,186.63,186.58,9.56716166]
[1753363663131,0.67,186.62,186.58,8.84716166]
[1753363663339,8.84716166,186.63,186.58,8.84716166]
[1753363663639,9.51716166,186.63,186.58,8.84716166]
[1753363665029,8.84716166,186.64,186.59,8.84716166]
[1753363665233,8.84716166,186.64,186.56,16.78468397]
[1753363665234,0.03,186.65,186.61,8.84716166]
[1753363665441,0.03,186.65,186.59,8.84716166]
[1753363665442,0.67,186.64,186.59,8.84716166]
[1753363665641,0.67,186.63,186.59,8.84716166]
[1753363665929,0.7,186.65,186.6,8.84716166]
[1753363666111,0.7,186.65,186.6,9.56716166]
[1753363667142,0.03,186.65,186.62,8.84716166]
[1753363667340,0.03,186.65,186.64,8.84716166]
[1753363667548,0.03,186.65,186.63,9.56716166]
[1753363668220,0.03,186.65,186.64,8.84716166]
[1753363668424,0.03,186.65,186.63,9.56716166]
[1753363668735,0.03,186.65,186.64,9.56716166]
[1753363669038,0.03,186.65,186.64,26.35184563]
[1753363669243,0.03,186.65,186.64,26.63616877]
[1753363673043,0.03,186.65,186.64,115.63616877]
[1753363677746,0.03,186.65,186.64,198.3279988]
[1753363677952,0.03,186.65,186.64,109.04367566]
[1753363678240,0.03,186.65,186.64,147.44367566]
[1753363678824,0.03,186.65,186.64,147.58583723]
[1753363679025,0.03,186.65,186.64,147.7279988]